fUST/lending_fUST_20250102
["ID","MTS","AMOUNT","RATE_DAILY","PERIOD"]
[347397294,1735762268127,-2289.08,0.00020821,3]
[347397295,1735762268136,-509.69,0.00020821,3]
[347397296,1735762268146,-500.0,0.00020821,3]
[347397297,1735762268155,-1240.54,0.00020821,3]
[347397298,1735762268165,-528.56,0.00020821,3]
[347397299,1735762268174,-500.0,0.00020821,3]
[347397300,1735762268183,-500.0,0.00020821,3]
[347397301,1735762268193,-934.03,0.00020821,3]
[347397302,1735762268202,-2155.3,0.00020821,3]
[347397303,1735762268212,-1141.64,0.00020821,3]
[347397304,1735762268222,-500.0,0.00020821,3]
[347397305,1735762268232,-1199.69,0.00020821,3]
[347397306,1735762268242,-500.0,0.00020821,3]
[347397307,1735762268252,-1144.79,0.00020821,3]
[347397308,1735762268262,-772.07,0.00020821,3]
[347397309,1735762268271,-12655.53,0.00020821,3]
[347397310,1735762268281,-500.0,0.00020821,3]
[347397311,1735762268290,-1274.8,0.00020821,3]
[347397312,1735762268299,-500.0,0.00020821,3]
[347397313,1735762268309,-500.0,0.00020821,3]
[347397314,1735762268318,-500.0,0.00020821,3]
[347397315,1735762268328,-1388.63,0.00020821,3]
[347397316,1735762268337,-536.46,0.00020821,3]
[347397317,1735762268347,-500.0,0.00020821,3]
[347397318,1735762268357,-1059.01,0.00020821,3]
[347397319,1735762268367,-500.0,0.00020821,3]
[347397320,1735762268377,-1187.73,0.00020821,3]
[347397321,1735762268387,-1566.1,0.00020821,3]
[347397322,1735762268397,-615.74,0.00020821,3]
[347397323,1735762268406,-3964.7,0.00020821,3]
[347397324,1735762268415,-565.38,0.00020821,3]
[347397325,1735762268424,-10431.83,0.00020821,3]
[347397326,1735762268434,-766.62,0.00020821,3]
[347397327,1735762268443,-551.68,0.00020821,3]
[347397328,1735762268453,-600.37169669,0.00020821,3]
[347397329,1735762268462,-500.0,0.00020821,3]
[347397330,1735762268472,-917.42,0.00020821,3]
[347397331,1735762268577,-1669.63,0.00020821,3]
[347397332,1735762268587,-6923.28,0.00020821,3]
[347397333,1735762268596,-502.25333623,0.00020821,3]
[347397334,1735762268606,-742.45,0.00020821,3]
[347397335,1735762268615,-500.0,0.00020821,3]
[347397336,1735762268624,-1388.14,0.00020821,3]
[347397337,1735762268634,-500.0,0.00020821,3]
[347397338,1735762268643,-500.0,0.00020821,3]
[347397339,1735762268652,-2096.1,0.00020821,3]
[347397340,1735762268661,-532.59,0.00020821,3]
[347397341,1735762268671,-500.0,0.00020821,3]
[347397342,1735762268680,-533.26,0.00020821,3]
[347397343,1735762268690,-1400.03,0.00020821,3]
[347397344,1735762268699,-670.08,0.00020821,3]
[347397345,1735762268708,-2860.09,0.00020821,3]
[347397346,1735762268717,-500.0,0.00020821,3]
[347397347,1735762268727,-500.0,0.00020821,3]
[347397348,1735762268736,-500.0,0.00020821,3]
[347397349,1735762268745,-500.0,0.00020821,3]
[347397350,1735762268755,-1078.84,0.00020821,3]
[347397351,1735762268764,-2801.12,0.00020821,3]
[347397352,1735762268773,-500.0,0.00020821,3]
[347397353,1735762268782,-2022.26,0.00020821,3]
[347397354,1735762268791,-2109.38,0.00020821,3]
[347397355,1735762268801,-627.17,0.00020821,3]
[347397356,1735762268810,-500.0,0.00020821,3]
[347397357,1735762268819,-500.0,0.00020821,3]
[347397358,1735762268829,-500.0,0.00020821,3]
[347397359,1735762268838,-51202.32,0.00020821,3]
[347397360,1735762268847,-1362.14,0.00020821,3]
[347397361,1735762268857,-500.0,0.00020821,3]
[347397362,1735762268867,-1900.83,0.00020821,3]
[347397363,1735762268877,-500.0,0.00020821,3]
[347397364,1735762268886,-4433.59,0.00020821,3]
[347397365,1735762268895,-500.0,0.00020821,3]
[347397366,1735762268907,-500.0,0.00020821,3]
[347397367,1735762268917,-4295.3,0.00020821,3]
[347397368,1735762268926,-1604.46,0.00020821,3]
[347397369,1735762268935,-4537.0,0.00020821,3]
[347397370,1735762268944,-3719.22,0.00020821,3]
[347397371,1735762268954,-594.6,0.00020821,3]
[347397372,1735762268964,-706.11,0.00020821,3]
[347397373,1735762268973,-500.0,0.00020821,3]
[347397374,1735762268984,-964.41,0.00020821,3]
[347397375,1735762268994,-500.0,0.00020821,3]
[347397376,1735762269003,-500.0,0.00020821,3]
[347397377,1735762269012,-2603.89,0.00020821,3]
[347397378,1735762269021,-974.85,0.00020821,3]
[347397379,1735762269031,-500.0,0.00020821,3]
[347397380,1735762269041,-2357.85,0.00020821,3]
[347397381,1735762269054,-618.24,0.00020821,3]
[347397382,1735762269064,-500.0,0.00020821,3]
[347397383,1735762269074,-2455.78,0.00020821,3]
[347397384,1735762269084,-1032.36,0.00020821,3]
[347397385,1735762269094,-591.98,0.00020821,3]
[347397386,1735762269103,-612.0,0.00020844,2]
[347397387,1735762269113,-612.0,0.00020844,2]
[347397388,1735762269122,-500.0,0.00020844,2]
[347397389,1735762269131,-186.36396129,0.00020845,2]
[347397390,1735762269141,-151.0,0.0002085,5]
[347397391,1735762269150,-254.24491,0.00020904,2]
[347397392,1735762269160,-1000.0,0.00021,21]
[347397393,1735762269169,-4000.0,0.00021,4]
[347397394,1735762269179,-150.0,0.00021,2]
[347397395,1735762269188,-2000.0,0.00021,2]
[347397396,1735762269198,-1000.05727885,0.00021022,2]
[347397397,1735762269207,-1500.0,0.00021022,2]
[347397398,1735762269216,-5971.4346813,0.00021048,14]
[347397399,1735762269225,-519.1,0.00021095,3]
[347397400,1735762269239,-500.0,0.00021095,3]
[347397401,1735762269249,-500.0,0.00021095,3]
[347397402,1735762269258,-500.0,0.00021095,3]
[347397403,1735762269268,-500.0,0.00021095,3]
[347397404,1735762269277,-500.0,0.00021095,3]
[347397405,1735762269287,-1126.45,0.00021095,3]
[347397406,1735762269296,-500.0,0.00021095,3]
[347397407,1735762269305,-500.0,0.00021095,3]
[347397408,1735762269315,-500.0,0.00021095,3]
[347397409,1735762269324,-500.0,0.00021095,3]
[347397410,1735762269333,-500.0,0.00021095,3]
[347397411,1735762269342,-500.0,0.00021095,3]
[347397412,1735762269351,-342.98000283,0.00021095,3]
[347397413,1735762269361,-500.0,0.00021095,3]
[347397414,1735762269370,-598.44,0.00021095,3]
[347397415,1735762269380,-500.0,0.00021095,3]
[347397416,1735762269389,-500.0,0.00021095,3]
[347397417,1735762269399,-500.0,0.00021095,3]
[347397418,1735762269408,-3600.72,0.00021095,2]
[347397419,1735762269418,-500.0,0.00021095,3]
[347397420,1735762269427,-654.64,0.00021095,3]
[347397421,1735762269437,-966.4,0.00021095,3]
[347397422,1735762269446,-981.55,0.00021095,3]
[347397423,1735762269456,-500.0,0.00021095,3]
[347397424,1735762269465,-460.17093052,0.00021095,3]
[347397425,1735762269475,-1514.27,0.00021095,3]
[347397426,1735762269486,-500.0,0.00021095,3]
[347397427,1735762269495,-600.02,0.00021095,3]
[347397428,1735762269504,-979.73,0.00021095,3]
[347397429,1735762269514,-561.13,0.00021095,3]
[347397430,1735762269524,-819.24,0.00021095,3]
[347397431,1735762269533,-183.50654338,0.00021095,3]
[347397432,1735762269543,-506.65,0.00021095,3]
[347397433,1735762269552,-500.0,0.00021095,3]
[347397434,1735762269561,-500.0,0.00021095,3]
[347397435,1735762269571,-902.98,0.00021095,3]
[347397436,1735762269581,-564.13,0.00021095,3]
[347397437,1735762269590,-886.37,0.00021095,3]
[347397438,1735762269599,-1261.15,0.00021095,3]
[347397439,1735762269609,-500.0,0.00021095,3]
[347397440,1735762269618,-760.81,0.00021095,3]
[347397441,1735762269627,-500.0,0.00021095,3]
[347397442,1735762269636,-725.49,0.00021095,3]
[347397443,1735762269646,-500.0,0.00021095,3]
[347397444,1735762269655,-517.36292727,0.00021095,3]
[347397445,1735762269665,-1874.01,0.00021095,3]
[347397446,1735762269674,-500.0,0.00021095,3]
[347397447,1735762269683,-1630.03,0.00021095,3]
[347397448,1735762269693,-503.45342686,0.00021095,3]
[347397449,1735762269702,-536.63,0.00021095,3]
[347397450,1735762269712,-351.38502095,0.00021095,3]
[347397451,1735762269721,-500.0,0.00021095,3]
[347397452,1735762269731,-851.76,0.00021095,3]
[347397453,1735762269741,-500.0,0.00021095,3]
[347397454,1735762269751,-500.0,0.00021095,3]
[347397455,1735762269760,-500.0,0.00021095,3]
[347397456,1735762269770,-1500.23,0.00021095,3]
[347397457,1735762269780,-1089.57,0.00021095,3]
[347397458,1735762269789,-500.0,0.00021095,3]
[347397459,1735762269798,-500.0,0.00021095,3]
[347397460,1735762269808,-500.0,0.00021095,3]
[347397461,1735762269817,-500.0,0.00021095,3]
[347397462,1735762269826,-500.0,0.00021095,3]
[347397463,1735762269835,-508.27386223,0.00021095,3]
[347397464,1735762269845,-500.0,0.00021095,3]
[347397465,1735762269854,-1120.0,0.00021095,3]
[347397466,1735762269863,-2032.53,0.00021095,3]
[347397467,1735762269873,-641.29,0.00021095,3]
[347397468,1735762269882,-151.0,0.00021095,6]
[347397469,1735762269974,-500.0,0.00021095,3]
[347397470,1735762269985,-500.0,0.00021095,3]
[347397471,1735762269994,-500.0,0.00021095,3]
[347397472,1735762270005,-976.67,0.00021095,3]
[347397473,1735762270015,-500.0,0.00021095,3]
[347397474,1735762270025,-777.31,0.00021095,3]
[347397475,1735762270035,-6757.83,0.00021095,3]
[347397476,1735762270044,-500.0,0.00021095,3]
[347397477,1735762270053,-847.67,0.00021095,3]
[347397478,1735762270062,-500.0,0.00021095,3]
[347397479,1735762270072,-500.0,0.00021095,3]
[347397480,1735762270081,-651.91,0.00021095,2]
[347397481,1735762270091,-575.27,0.00021095,3]
[347397482,1735762270100,-500.0,0.00021095,3]
[347397483,1735762270109,-500.0,0.00021095,3]
[347397484,1735762270118,-500.0,0.00021095,3]
[347397485,1735762270128,-1295.31,0.00021095,3]
[347397486,1735762270137,-508.00963117,0.00021095,3]
[347397487,1735762270147,-500.0,0.00021095,3]
[347397488,1735762270156,-500.0,0.00021095,3]
[347397489,1735762270166,-500.0,0.00021095,3]
[347397490,1735762270175,-724.32,0.00021095,3]
[347397491,1735762270185,-1999.84,0.00021095,3]
[347397492,1735762270194,-2289.08,0.00021095,3]
[347397493,1735762270203,-509.69,0.00021095,3]
[347397494,1735762270212,-500.0,0.00021095,3]
[347397495,1735762270221,-1240.54,0.00021095,3]
[347397496,1735762270232,-528.56,0.00021095,3]
[347397497,1735762270241,-500.0,0.00021095,3]
[347397498,1735762270250,-500.0,0.00021095,3]
[347397499,1735762270258,-934.03,0.00021095,3]
[347397500,1735762270267,-2155.3,0.00021095,3]
[347397501,1735762270276,-1141.64,0.00021095,3]
[347397502,1735762270285,-500.0,0.00021095,3]
[347397503,1735762270294,-1199.69,0.00021095,3]
[347397504,1735762270303,-500.0,0.00021095,3]
[347397505,1735762270312,-1144.79,0.00021095,3]
[347397506,1735762270321,-772.07,0.00021095,3]
[347397507,1735762270331,-12655.53,0.00021095,3]
[347397508,1735762270340,-500.0,0.00021095,3]
[347397509,1735762270349,-1274.8,0.00021095,3]
[347397510,1735762270357,-500.0,0.00021095,3]
[347397511,1735762270366,-500.0,0.00021095,3]
[347397512,1735762270375,-500.0,0.00021095,3]
[347397513,1735762270385,-1388.63,0.00021095,3]
[347397514,1735762270394,-536.46,0.00021095,3]
[347397515,1735762270404,-500.0,0.00021095,3]
[347397516,1735762270414,-1059.01,0.00021095,3]
[347397517,1735762270424,-500.0,0.00021095,3]
[347397518,1735762270434,-1187.73,0.00021095,3]
[347397519,1735762270443,-1566.1,0.00021095,3]
[347397520,1735762270452,-615.74,0.00021095,3]
[347397521,1735762270461,-3964.7,0.00021095,3]
[347397522,1735762270470,-565.38,0.00021095,3]
[347397523,1735762270479,-10431.83,0.00021095,3]
[347397524,1735762270489,-766.62,0.00021095,3]
[347397525,1735762270498,-551.68,0.00021095,3]
[347397526,1735762270508,-500.0,0.00021095,3]
[347397527,1735762270518,-917.42,0.00021095,3]
[347397528,1735762270527,-1669.63,0.00021095,3]
[347397529,1735762270536,-6923.28,0.00021095,3]
[347397530,1735762270546,-742.45,0.00021095,3]
[347397531,1735762270554,-330.22662901,0.00021095,3]
[347397532,1735762270564,-1388.14,0.00021095,3]
[347397533,1735762270573,-500.0,0.00021095,3]
[347397534,1735762270583,-500.0,0.00021095,3]
[347397535,1735762270593,-2096.1,0.00021095,3]
[347397536,1735762270602,-532.59,0.00021095,3]
[347397537,1735762270612,-632.91874193,0.00021095,3]
[347397538,1735762270621,-533.26,0.00021095,3]
[347397539,1735762270630,-1400.03,0.00021095,3]
[347397540,1735762270639,-2860.09,0.00021095,3]
[347397541,1735762270649,-670.08,0.00021095,3]
[347397542,1735762270659,-500.0,0.00021095,3]
[347397543,1735762270668,-500.0,0.00021095,3]
[347397544,1735762270678,-500.0,0.00021095,3]
[347397545,1735762270687,-500.0,0.00021095,3]
[347397546,1735762270697,-1078.84,0.00021095,3]
[347397547,1735762270707,-2801.12,0.00021095,3]
[347397548,1735762270716,-500.0,0.00021095,3]
[347397549,1735762270726,-2022.26,0.00021095,3]
[347397550,1735762270736,-2109.38,0.00021095,3]
[347397551,1735762270746,-627.17,0.00021095,3]
[347397552,1735762270755,-500.0,0.00021095,3]
[347397553,1735762270765,-500.0,0.00021095,3]
[347397554,1735762270774,-500.0,0.00021095,3]
[347397555,1735762270783,-51202.32,0.00021095,3]
[347397556,1735762270793,-1362.14,0.00021095,3]
[347397557,1735762270802,-500.0,0.00021095,3]
[347397558,1735762270811,-1900.83,0.00021095,3]
[347397559,1735762270821,-500.0,0.00021095,3]
[347397560,1735762270831,-4433.59,0.00021095,3]
[347397561,1735762270840,-500.0,0.00021095,3]
[347397562,1735762270850,-500.0,0.00021095,3]
[347397563,1735762270859,-4295.3,0.00021095,3]
[347397564,1735762270869,-1604.46,0.00021095,3]
[347397565,1735762270878,-4537.0,0.00021095,3]
[347397566,1735762270888,-3719.22,0.00021095,3]
[347397567,1735762270897,-594.6,0.00021095,3]
[347397568,1735762270910,-706.11,0.00021095,3]
[347397569,1735762270919,-500.0,0.00021095,3]
[347397570,1735762270927,-964.41,0.00021095,3]
[347397571,1735762270937,-500.0,0.00021095,3]
[347397572,1735762270947,-500.0,0.00021095,3]
[347397573,1735762270956,-2603.89,0.00021095,3]
[347397574,1735762270966,-974.85,0.00021095,3]
[347397575,1735762270975,-500.0,0.00021095,3]
[347397576,1735762270986,-2357.85,0.00021095,3]
[347397577,1735762270996,-500.0,0.00021095,3]
[347397578,1735762271007,-2455.78,0.00021095,3]
[347397579,1735762271016,-1032.36,0.00021095,3]
[347397580,1735762271026,-591.98,0.00021095,3]
[347397581,1735762271035,-254.24491,0.00021096,2]
[347397582,1735762271045,-11478.75,0.000211,2]
[347397583,1735762271054,-612.0,0.00021118,2]
[347397584,1735762271063,-612.0,0.00021118,2]
[347397585,1735762271074,-835.00380554,0.00021118,2]
[347397586,1735762271083,-7070.98,0.000212,2]
[347397587,1735762271092,-254.24491,0.00021288,2]
[347397588,1735762271102,-519.1,0.00021369,3]
[347397589,1735762271111,-500.0,0.00021369,3]
[347397590,1735762271120,-529.86274165,0.00021369,3]
[347397591,1735762271130,-500.0,0.00021369,3]
[347397592,1735762271139,-500.0,0.00021369,3]
[347397593,1735762271149,-500.0,0.00021369,3]
[347397594,1735762271158,-1126.45,0.00021369,3]
[347397595,1735762271168,-450.48015,0.00021369,3]
[347397596,1735762271177,-500.0,0.00021369,3]
[347397597,1735762271186,-500.0,0.00021369,3]
[347397598,1735762271279,-298.88044915,0.00021369,3]
[347397599,1735762271289,-500.0,0.00021369,3]
[347397600,1735762271309,-500.0,0.00021369,3]
[347397601,1735762271320,-500.0,0.00021369,3]
[347397602,1735762271330,-598.44,0.00021369,3]
[347397603,1735762271340,-569.73027689,0.00021369,3]
[347397604,1735762271351,-500.0,0.00021369,3]
[347397605,1735762271361,-500.0,0.00021369,3]
[347397606,1735762271371,-3600.72,0.00021369,2]
[347397607,1735762271381,-500.0,0.00021369,3]
[347397608,1735762271392,-654.64,0.00021369,3]
[347397609,1735762271402,-966.4,0.00021369,3]
[347397610,1735762271413,-981.55,0.00021369,3]
[347397611,1735762271424,-167.98749268,0.00021369,3]
[347397612,1735762271434,-1514.27,0.00021369,3]
[347397613,1735762271445,-500.0,0.00021369,3]
[347397614,1735762271455,-600.02,0.00021369,3]
[347397615,1735762271465,-979.73,0.00021369,3]
[347397616,1735762271476,-561.13,0.00021369,3]
[347397617,1735762271488,-819.24,0.00021369,3]
[347397618,1735762271498,-506.65,0.00021369,3]
[347397619,1735762271508,-500.0,0.00021369,3]
[347397620,1735762271518,-436.87616929,0.00021369,3]
[347397621,1735762271528,-902.98,0.00021369,3]
[347397622,1735762271538,-886.37,0.00021369,3]
[347397623,1735762271548,-1261.15,0.00021369,3]
[347397624,1735762271559,-500.0,0.00021369,3]
[347397625,1735762271570,-760.81,0.00021369,3]
[347397626,1735762271581,-500.0,0.00021369,3]
[347397627,1735762271591,-725.49,0.00021369,3]
[347397628,1735762271602,-500.0,0.00021369,3]
[347397629,1735762271612,-1874.01,0.00021369,3]
[347397630,1735762271622,-500.0,0.00021369,3]
[347397631,1735762271632,-1630.03,0.00021369,3]
[347397632,1735762271642,-536.63,0.00021369,3]
[347397633,1735762271652,-500.0,0.00021369,3]
[347397634,1735762271662,-851.76,0.00021369,3]
[347397635,1735762271672,-500.0,0.00021369,3]
[347397636,1735762271682,-500.0,0.00021369,3]
[347397637,1735762271691,-500.0,0.00021369,3]
[347397638,1735762271701,-1500.23,0.00021369,3]
[347397639,1735762271711,-1089.57,0.00021369,3]
[347397640,1735762271722,-500.0,0.00021369,3]
[347397641,1735762271732,-352.24712626,0.00021369,3]
[347397642,1735762271742,-500.0,0.00021369,3]
[347397643,1735762271751,-278.02650264,0.00021369,3]
[347397644,1735762271761,-500.0,0.00021369,3]
[347397645,1735762271772,-500.0,0.00021369,3]
[347397646,1735762271781,-1120.0,0.00021369,3]
[347397647,1735762271791,-2032.53,0.00021369,3]
[347397648,1735762271802,-641.29,0.00021369,3]
[347397649,1735762271811,-500.0,0.00021369,3]
[347397650,1735762271821,-500.0,0.00021369,3]
[347397651,1735762271831,-500.0,0.00021369,3]
[347397652,1735762271841,-976.67,0.00021369,3]
[347397653,1735762271851,-552.59579627,0.00021369,3]
[347397654,1735762271861,-777.31,0.00021369,3]
[347397655,1735762271870,-6757.83,0.00021369,3]
[347397656,1735762271880,-500.0,0.00021369,3]
[347397657,1735762271889,-847.67,0.00021369,3]
[347397658,1735762271899,-500.0,0.00021369,3]
[347397659,1735762271912,-500.0,0.00021369,3]
[347397660,1735762271922,-651.91,0.00021369,2]
[347397661,1735762271932,-575.27,0.00021369,3]
[347397662,1735762271942,-500.0,0.00021369,3]
[347397663,1735762271953,-500.0,0.00021369,3]
[347397664,1735762271963,-500.0,0.00021369,3]
[347397665,1735762271974,-1295.31,0.00021369,3]
[347397666,1735762271986,-162.13139643,0.00021369,3]
[347397667,1735762271995,-500.0,0.00021369,3]
[347397668,1735762272005,-500.0,0.00021369,3]
[347397669,1735762272015,-724.32,0.00021369,3]
[347397670,1735762272024,-1999.84,0.00021369,3]
[347397671,1735762272035,-2289.08,0.00021369,3]
[347397672,1735762272044,-509.69,0.00021369,3]
[347397673,1735762272053,-500.0,0.00021369,3]
[347397674,1735762272063,-1240.54,0.00021369,3]
[347397675,1735762272072,-528.56,0.00021369,3]
[347397676,1735762272082,-500.0,0.00021369,3]
[347397677,1735762272091,-500.0,0.00021369,3]
[347397678,1735762272101,-934.03,0.00021369,3]
[347397679,1735762272111,-2155.3,0.00021369,3]
[347397680,1735762272121,-1141.64,0.00021369,3]
[347397681,1735762272130,-500.0,0.00021369,3]
[347397682,1735762272139,-1199.69,0.00021369,3]
[347397683,1735762272149,-500.0,0.00021369,3]
[347397684,1735762272159,-1144.79,0.00021369,3]
[347397685,1735762272168,-772.07,0.00021369,3]
[347397686,1735762272178,-12655.53,0.00021369,3]
[347397687,1735762272187,-500.0,0.00021369,3]
[347397688,1735762272196,-1274.8,0.00021369,3]
[347397689,1735762272206,-500.0,0.00021369,3]
[347397690,1735762272216,-500.0,0.00021369,3]
[347397691,1735762272225,-500.0,0.00021369,3]
[347397692,1735762272235,-1388.63,0.00021369,3]
[347397693,1735762272245,-536.46,0.00021369,3]
[347397694,1735762272256,-487.30443837,0.00021369,3]
[347397695,1735762272265,-1059.01,0.00021369,3]
[347397696,1735762272275,-500.0,0.00021369,3]
[347397697,1735762272284,-1187.73,0.00021369,3]
[347397698,1735762272293,-1566.1,0.00021369,3]
[347397699,1735762272303,-615.74,0.00021369,3]
[347397700,1735762272312,-3964.7,0.00021369,3]
[347397701,1735762272321,-565.38,0.00021369,3]
[347397702,1735762272331,-10431.83,0.00021369,3]
[347397703,1735762272340,-766.62,0.00021369,3]
[347397704,1735762272349,-551.68,0.00021369,3]
[347397705,1735762272358,-500.0,0.00021369,3]
[347397706,1735762272368,-917.42,0.00021369,3]
[347397707,1735762272377,-1669.63,0.00021369,3]
[347397708,1735762272387,-5621.98058369,0.00021369,3]
[347397709,1735762272976,-1230.17,0.00019178,2]
[347397710,1735762272996,-1663.01,0.00019178,2]
[347397711,1735762273015,-895.2974,0.00019452,3]
[347397785,1735763432238,-159.577617,0.00013695,2]
[347397787,1735763432248,-159.577617,0.00013973,2]
[347397789,1735763432257,-2507.175907,0.00017586,2]
[347397791,1735763432267,-300.0,0.00017999,2]
[347397793,1735763432275,-300.53000637,0.00018,2]
[347397795,1735763432284,-4120.9953211,0.00018,2]
[347397797,1735763432294,-150.0,0.00018,2]
[347397823,1735763432449,-934.3773008,0.00018055,2]
[347397825,1735763432460,-12082.5356498,0.0001814,2]
[347397827,1735763432469,-3451.129525,0.00018995,2]
[347397829,1735763432478,-186.36396129,0.00019077,2]
[347397831,1735763432488,-185.76419845,0.00019078,2]
[347397833,1735763432497,-1120.86606431,0.00019078,2]
[347397835,1735763432506,-5164.75756255,0.00019118,2]
[347397837,1735763432515,-160.733,0.00019177,2]
[347397839,1735763432524,-182.79445728,0.00019177,2]
[347397841,1735763432534,-602.98861989,0.00019177,2]
[347397843,1735763432543,-500.0,0.00019177,2]
[347397845,1735763432553,-500.0,0.00019177,2]
[347397847,1735763432561,-500.0,0.00019177,2]
[347397849,1735763432571,-209.2807597,0.00019177,2]
[347397851,1735763432580,-500.0,0.00019177,2]
[347397853,1735763432591,-629.49000652,0.00019177,2]
[347397855,1735763432600,-500.0,0.00019177,2]
[347397857,1735763432610,-500.0,0.00019178,2]
[347397859,1735763432619,-218.92802672,0.00019178,2]
[347397861,1735763432628,-500.0,0.00019178,2]
[347397863,1735763432642,-500.0,0.00019178,2]
[347397865,1735763432656,-500.0,0.00019178,2]
[347397867,1735763432668,-946.42,0.00019178,2]
[347397869,1735763432682,-500.0,0.00019178,2]
[347397871,1735763432691,-500.0,0.00019178,2]
[347397873,1735763432700,-500.0,0.00019178,2]
[347397875,1735763432709,-1593.72,0.00019178,2]
[347397877,1735763432719,-500.0,0.00019178,2]
[347397879,1735763432728,-500.0,0.00019178,2]
[347397881,1735763432738,-500.0,0.00019178,2]
[347397883,1735763432747,-529.69174008,0.00019178,2]
[347397885,1735763432756,-500.0,0.00019178,2]
[347397887,1735763432766,-500.0,0.00019178,2]
[347397889,1735763432775,-500.0,0.00019178,2]
[347397891,1735763432784,-500.0,0.00019178,2]
[347397893,1735763432794,-610.41,0.00019178,2]
[347397895,1735763432803,-500.0,0.00019178,2]
[347397897,1735763432812,-500.0,0.00019178,2]
[347397899,1735763432822,-500.0,0.00019178,2]
[347397901,1735763432831,-500.0,0.00019178,2]
[347397903,1735763432841,-500.0,0.00019178,2]
[347397905,1735763432850,-500.0,0.00019178,2]
[347397907,1735763432860,-500.0,0.00019178,2]
[347397909,1735763432869,-500.0,0.00019178,2]
[347397911,1735763432879,-500.0,0.00019178,2]
[347397913,1735763432887,-500.0,0.00019178,2]
[347397915,1735763432900,-500.0,0.00019178,2]
[347397918,1735763432909,-500.0,0.00019178,2]
[347397919,1735763432919,-500.0,0.00019178,2]
[347397921,1735763432927,-455.70709484,0.00019178,2]
[347397922,1735763432938,-500.0,0.00019178,2]
[347397923,1735763432947,-500.0,0.00019178,2]
[347397924,1735763432955,-500.0,0.00019178,2]
[347397925,1735763432965,-553.98,0.00019178,2]
[347397926,1735763432975,-675.96,0.00019178,2]
[347397927,1735763432984,-500.0,0.00019178,2]
[347397928,1735763432993,-500.0,0.00019178,2]
[347397929,1735763433002,-500.0,0.00019178,2]
[347397930,1735763433010,-529.79,0.00019178,2]
[347397931,1735763433019,-500.0,0.00019178,2]
[347397932,1735763433028,-500.0,0.00019178,2]
[347397933,1735763433038,-500.0,0.00019178,2]
[347397934,1735763433047,-450.43940306,0.00019178,2]
[347397935,1735763433057,-500.0,0.00019178,2]
[347397936,1735763433066,-532.35,0.00019178,2]
[347397937,1735763433075,-500.0,0.00019178,2]
[347397938,1735763433086,-850.72,0.00019178,2]
[347397939,1735763433095,-500.0,0.00019178,2]
[347397940,1735763433104,-500.0,0.00019178,2]
[347397941,1735763433113,-500.0,0.00019178,2]
[347397942,1735763433122,-1081.27,0.00019178,2]
[347397943,1735763433131,-500.0,0.00019178,2]
[347397944,1735763433140,-500.0,0.00019178,2]
[347397945,1735763433149,-500.0,0.00019178,2]
[347397946,1735763433158,-1270.33,0.00019178,2]